Cogmind - Beta 13 @@@ ROGUE MODE // 2024.06.14 @ 22:15:27 Player: Edstelm Result: Destroyed by S-27 Virus with Autogun Performance ------------- Evolutions (5) 2500 Regions Visited (8) 1600 Robots Destroyed (146) 730 Value Destroyed (5212) 5212 Prototype IDs (7) 140 Alien Tech Used (0) 0 Bonus (1093) 1093 TOTAL SCORE: 11275 Bonus ------- High Alert Combat Kills 593 Entered DSFs 500 Cogmind --------- Core Integrity 0/1000 Matter 83/300 Energy 99/100 System Corruption 9% Temperature Cool (0) Movement Core (50) Location -5/Extension Parts ------- > --- POWER (2) -------- (None) > --- PROPULSION (4) --- (None) > --- UTILITY (5) ------ (None) > --- WEAPON (6) ------- (None) > --- INVENTORY (5) ---- Advanced Heat Sink Enhanced Optical Array Advanced Target Analyzer Component Analysis Suite Improved Recalibrator Peak State ------------ > --- POWER ------------ Neutrino Core Light Neutrino Core > --- PROPULSION ------- Armored Medium Treads Armored Medium Treads Armored Medium Treads Armored Medium Treads > --- UTILITY ---------- Advanced Cooling System Large Storage Unit Core Analyzer Improved Hacking Suite Advanced System Shield > --- WEAPON ----------- Advanced Plasma Cannon Advanced Plasma Cannon Heavy Phase Cannon Heavy Phase Cannon Enhanced Gauss Cannon Heavy Missile Launcher > --- INVENTORY -------- Angular Momentum Engine Light Fission Core Armored Medium Treads Advanced Heat Sink Improved Cooling System Enhanced Optical Array Advanced Target Analyzer Improved Power Shielding Improved Light Armor Plating Focal Shield Component Analysis Suite Improved Recalibrator Wave Gun Disruptor Cannon [Rating: 100] Favorites ----------- Power Angular Momentum Engine Engine Angular Momentum Engine Power Core Light Fission Core Propulsion Armored Medium Treads Treads Armored Medium Treads Leg Aluminum Leg Wheel Armored Huge Wheel Utility Core Analyzer Device Advanced Cooling System Storage Small Storage Unit Processor Core Analyzer Hackware Advanced System Shield Protection Propulsion Shielding Weapon Advanced Plasma Cannon Energy Gun Heavy Laser Energy Cannon Advanced Plasma Cannon Ballistic Gun Flak Gun Ballistic Cannon Enhanced Gauss Cannon Launcher Heavy Missile Launcher Build | -11 -10 -9 -8 -7 -6 -6 -5 -5 ------- Run | Yrd Mat Mat Mat Fac Fac DSF Fac Ext Slots Evolved 10 | . . 2 2 2 2 . 2 . Power 1 | . . . . . . . 1 . Propulsion 2 | . . 1 . . 1 . . . Utility 3 | . . 1 . 1 1 . . . Weapon 4 | . . . 2 1 . . 1 . Parts Attached 109 | 6 2 23 14 13 2 22 16 11 Power 15 | 1 . 5 1 1 . 2 3 2 Engine 9 | 1 . 5 . 1 . . 1 1 Core 6 | . . . 1 . . 2 2 1 Reactor . | . . . . . . . . . Propulsion 20 | 2 . 7 3 1 . 6 . 1 Treads 13 | 2 . 3 3 . . 4 . 1 Leg 5 | . . 4 . 1 . . . . Wheel 2 | . . . . . . 2 . . Hover . | . . . . . . . . . Flight . | . . . . . . . . . Utility 41 | 1 2 5 3 8 2 6 8 6 Device 26 | . 2 2 3 6 2 2 5 4 Storage 2 | 1 . . . . . . 1 . Processor 5 | . . 1 . 1 . 3 . . Hackware 2 | . . . . . . 1 1 . Protection 6 | . . 2 . 1 . . 1 2 Artifact . | . . . . . . . . . Weapon 33 | 2 . 6 7 3 . 8 5 2 Energy Gun 11 | . . 3 3 1 . 3 . 1 Energy Cannon 5 | . . . . . . 2 2 1 Ballistic Gun 10 | 2 . 1 3 2 . 1 1 . Ballistic Cannon 3 | . . . . . . 2 1 . Launcher 4 | . . 2 1 . . . 1 . Special Weapon . | . . . . . . . . . Impact Weapon . | . . . . . . . . . Slashing Weapon . | . . . . . . . . . Piercing Weapon . | . . . . . . . . . Special Melee Weapon . | . . . . . . . . . Unidentified Prototypes . | . . . . . . . . . Parts Lost 43 | . . 9 4 2 . 7 . 21 Power 6 | . . 2 . . . 1 . 3 Propulsion 7 | . . 1 1 1 . . . 4 Utility 13 | . . 3 3 . . 1 . 6 Weapon 17 | . . 3 . 1 . 5 . 8 Highest Loss Streak 21 | . . 4 1 2 . 6 . 21 To Critical Strikes 2 | . . . 1 . . 1 . . Average Slot Usage (%) 97 | . 99 96 96 98 93 89 99 94 Engine 6 | . 14 10 8 2 6 2 4 . Core 3 | . . . . 4 . 3 5 10 Treads 23 | . 28 23 27 21 13 17 23 20 Leg 1 | . . 9 . . 6 . . . Device 11 | . 13 11 17 19 20 9 8 5 Storage 5 | . 14 11 6 . . . 1 4 Processor 4 | . . 1 . 6 6 15 6 4 Hackware 4 | . . . . . . 1 10 10 Protection 2 | . . 7 . 3 6 5 . . Energy Gun 7 | . . 12 17 15 13 11 . . Energy Cannon 7 | . . . . . . 3 15 20 Ballistic Gun 8 | . 28 4 16 21 20 9 . . Ballistic Cannon 4 | . . . . . . 2 12 4 Launcher 3 | . . 4 1 . . . 4 4 Naked Turns 11 | . . . . . . . . 11 Heaviest Build 98 | 11 12 19 28 37 35 48 98 98 Greatest Support 108 | 40 40 69 69 69 46 108 108 108 Greatest Overweight (x) 5 | . . 5 . . . 1 . 1 Average Overweight (x) . | . . . . . . . . . Largest Inventory Capacity 15 | 8 8 8 8 5 5 5 15 15 Average Capacity 7 | 6 8 8 7 5 5 5 7 14 Most Carried 15 | 4 8 8 8 5 3 5 15 14 Average Carried 6 | 1 7 7 6 4 2 3 6 13 Final Capacity 15 | 8 8 8 5 5 5 5 15 5 Final Carried 14 | 4 8 8 5 4 2 4 14 5 Class Distribution -------------------- 35% | Hacker-Executioner 31% | Mutant 12% | Skirmisher 12% | Gunner 4% | Executioner Dominant Class ---------------- Mutant | -10/Materials Mutant | -9/Materials Gunner | -8/Materials Skirmisher | -7/Factory Skirmisher | -6/Factory Gunner | -6/DSF Hacker-Executioner | -5/Factory Hacker-Executioner | -5/Extension Resources | -11 -10 -9 -8 -7 -6 -6 -5 -5 ----------- Run | Yrd Mat Mat Mat Fac Fac DSF Fac Ext Matter Collected 2836 | 202 72 447 480 410 . 424 702 99 Remotely 26 | . 26 . . . . . . . Salvage Created 5155 | . 197 761 714 482 . 749 1573 679 Parts 242 | . 22 46 45 19 . 21 70 19 Haulers Intercepted 3 | . 1 1 . . . . 1 . Recyclers Shooed 2 | . . . . . . . 1 1 Parts Field Recycled . | . . . . . . . . . Retrieved Matter . | . . . . . . . . . Parts Self-Destructed . | . . . . . . . . . Prevented . | . . . . . . . . . Kills | -11 -10 -9 -8 -7 -6 -6 -5 -5 ------- Run | Yrd Mat Mat Mat Fac Fac DSF Fac Ext Combat Hostiles Destroyed 110 | . 7 26 16 15 . 9 23 14 Guns 59 | . 7 16 13 15 . 8 . . Cannons 31 | . . . . . . 1 18 12 AOE 20 | . . 10 3 . . . 5 2 Classes Destroyed 16 | . 4 3 3 . . 2 3 1 Worker 10 | . . 1 2 . . . 7 . Builder 8 | . . 1 1 . . . 6 . Tunneler 2 | . . . . . . . 2 . Hauler 3 | . 1 1 . . . . 1 . Recycler 4 | . . . 1 . . . 3 . Operator 2 | . . . . . . . 2 . Watcher 7 | . 1 3 . . . . 2 1 Swarmer 26 | . 6 10 4 6 . . . . Grunt 53 | . 1 11 7 7 . 3 14 10 Brawler 2 | . . . 1 1 . . . . Sentry 10 | . . 5 2 1 . . . 2 Specialist 6 | . . . 2 . . 4 . . Hunter 3 | . . . . . . 1 2 . Programmer 7 | . . . . . . . 7 . Heavy 1 | . . . . . . 1 . . Thug 1 | . . . . . . . . 1 Butcher 1 | . . . . . . . . 1 Best Kill Streak 20 | . 3 8 7 6 . 3 20 7 Combat Bots Only 11 | . 3 5 5 6 . 3 11 6 Max Kills in Single Turn 5 | . 2 3 2 2 . 1 5 2 Gunslinging 1 | . 1 . . 1 . . . . Exploded 3 | . . 3 2 . . . 3 1 Melee . | . . . . . . . . . Uniques/NPCs Destroyed . | . . . . . . . . . Combat | -11 -10 -9 -8 -7 -6 -6 -5 -5 -------- Run | Yrd Mat Mat Mat Fac Fac DSF Fac Ext Hostile Shots Fired 652 | . 21 104 73 83 . 72 105 194 Missed 192 | . 6 32 20 25 . 20 36 53 Damage Taken 8345 | . 137 1279 661 652 . 1027 1749 2840 Core 1646 | . 20 198 62 171 . 186 293 716 Absorbed by Shields . | . . . . . . . . . Redirected to Shielding 283 | . . 101 . 38 . 41 . 103 Ignored by Resistances 7 | . . . . . . . . 7 Core Remaining (%) 80 | 100 92 50 88 75 . 78 . . Volleys Fired 226 | . 19 59 27 23 . 25 35 38 Largest 6 | . 2 2 4 5 . 5 6 6 Hottest 472 | . 40 121 194 222 . 371 435 472 Shots Fired 720 | . 38 116 106 102 . 69 165 124 Gun 408 | . 38 99 103 102 . 65 . 1 Cannon 280 | . . . . . . 4 157 119 Launcher 32 | . . 17 3 . . . 8 4 Special . | . . . . . . . . . Kinetic 310 | . 38 28 49 68 . 34 63 30 Thermal 362 | . . 71 50 34 . 27 94 86 Explosive 29 | . . 17 . . . . 8 4 Electromagnetic 19 | . . . 7 . . 8 . 4 Robot Hit Streak 16 | . 9 16 8 7 . 7 13 12 Robot Miss Streak 11 | . 4 8 9 11 . 6 3 5 Penetration Max 1 | . . . . . . . 1 1 Secondary Targets 15 | . 2 1 4 6 . 2 . . Max Gunslinging Chain 2 | . 1 1 1 2 . 1 . . Shots Hit Robots 445 | . 22 80 63 72 . 51 80 77 Core Hits 351 | . 12 69 60 56 . 45 74 35 Critical Kills 1 | . . . . . . . 1 . Critical Parts Destroyed 1 | . . 1 . . . . . . Critical Strikes 12 | . . 5 1 1 . 2 1 2 Burn 8 | . . 4 1 1 . 2 . . Meltdown 1 | . . . . . . . 1 . Destroy 1 | . . 1 . . . . . . Blast 2 | . . . . . . . . 2 Melee Attacks . | . . . . . . . . . Impact . | . . . . . . . . . Slashing . | . . . . . . . . . Piercing . | . . . . . . . . . Sneak Attacks . | . . . . . . . . . Combat Hostiles . | . . . . . . . . . Follow-up Attacks . | . . . . . . . . . Damage Inflicted 14967 | . 231 1942 1498 1293 . 852 5863 3288 Guns 4529 | . 231 1024 1164 1293 . 817 . . Cannons 5607 | . . . . . . 35 2958 2614 Explosions 4810 | . . 918 334 . . . 2905 653 Melee . | . . . . . . . . . Ramming 21 | . . . . . . . . 21 Kinetic 4023 | . 231 277 617 931 . 394 904 669 Thermal 6509 | . . 747 722 362 . 355 2305 2018 Explosive 4092 | . . 918 . . . . 2654 520 Electromagnetic 322 | . . . 159 . . 103 . 60 Impact . | . . . . . . . . . Slashing . | . . . . . . . . . Piercing . | . . . . . . . . . Highest Corruption 9 | . . . 2 . . . 3 9 Average Corruption 2 | . . . 1 . . . 2 3 Corruption Purged . | . . . . . . . . . Corruption Blocked . | . . . . . . . . . Effects 27 | . . . 7 . . . 11 9 Message Errors 6 | . . . 1 . . . 3 2 Matter Fused 5 | . . . 2 . . . . 3 Heat Flow Errors 4 | . . . . . . . 4 . Energy Discharges 7 | . . . 3 . . . 1 3 Parts Rejected 1 | . . . . . . . 1 . Data Loss (minor) 1 | . . . . . . . . 1 Data Loss (major) 1 | . . . . . . . 1 . Alerts 1 | . . . . . . . 1 . Weapon Failures 1 | . . . 1 . . . . . Overload Shots . | . . . . . . . . . Overflow Damage 363 | . . 40 2 . . . 240 81 Projectiles 215 | . . . . . . . 137 78 Explosions 148 | . . 40 2 . . . 103 3 Melee . | . . . . . . . . . Knockbacks 10 | . . . . . . . 5 5 Impact . | . . . . . . . . . Kinetic 8 | . . . . . . . 3 5 Secondary 2 | . . . . . . . 2 . Self-Inflicted Damage 494 | . . 226 . . . . 258 10 Shots 9 | . . 5 . . . . 4 . Rammed 4 | . . . . . . . . 4 Targets Rammed 4 | . . . . . . . . 4 Kicked . | . . . . . . . . . Crushed . | . . . . . . . . . Highest Temperature 686 | . 12 401 207 535 . 294 671 686 Average Temperature 174 | . 7 82 111 225 . 99 205 248 Received Heat Transfer 1926 | . 30 333 189 126 . 99 459 690 Effects 50 | . . 1 . 11 . . 16 22 Shutdowns 20 | . . 1 . 2 . . 7 10 Energy Bleed 4 | . . . . 2 . . 1 1 Interference 4 | . . . . . . . 4 . Matter Decay 3 | . . . . 1 . . 2 . Short Circuit 3 | . . . . 1 . . 1 1 Damage (minor) 5 | . . . . . . . . 5 Damage (major) 9 | . . . . 4 . . . 5 Damage (core) 2 | . . . . 1 . . 1 . Siege Activations . | . . . . . . . . . Robots Corrupted . | . . . . . . . . . Combat Hostiles . | . . . . . . . . . Parts Fried . | . . . . . . . . . Impact Corruptions . | . . . . . . . . . Robots Melted 3 | . . . . . . 2 1 . Combat Hostiles . | . . . . . . . . . Parts Melted 23 | . . 5 1 . . 8 5 4 Heat Transferred 10003 | . . 1869 1152 777 . 827 2842 2536 Parts Sabotaged 1 | . . . . . . . . 1 Parts Stolen . | . . . . . . . . . Parts Stripped . | . . . . . . . . . Power Chain Reactions 2 | . . . 2 . . . . . Alert | -11 -10 -9 -8 -7 -6 -6 -5 -5 ------- Run | Yrd Mat Mat Mat Fac Fac DSF Fac Ext Peak Influence 840 | . 177 695 544 485 173 301 840 771 Initial 344 | . . 11 250 210 173 121 157 344 Average 320 | . 57 259 375 310 173 224 413 504 Maximum Alert Level 3 | . . 2 2 2 . 1 3 3 Low Security (%) 37 | 100 100 60 . . 100 27 38 . Level 1 28 | . . 14 60 68 . 72 18 17 Level 2 22 | . . 24 39 31 . . 8 73 Level 3 11 | . . . . . . . 34 8 Level 4 . | . . . . . . . . . Level 5 . | . . . . . . . . . High Security . | . . . . . . . . . Max Security . | . . . . . . . . . Sterilizations 1 | . . . . . . 1 . . Squads Dispatched 27 | . . 2 2 5 . 2 9 7 Investigation 13 | . . 2 . 2 . . 7 2 Extermination 2 | . . . . . . . 2 . Reinforcement 6 | . . . 2 . . 2 . 2 Assault 3 | . . . . . . . . 3 Garrison 3 | . . . . 3 . . . . Intercept . | . . . . . . . . . Searches Triggered . | . . . . . . . . . Construction Impeded . | . . . . . . . . . Haulers Reinforced . | . . . . . . . . . Active Scanning Responses . | . . . . . . . . . Cargo Convoy Interrupts . | . . . . . . . . . Stealth | -11 -10 -9 -8 -7 -6 -6 -5 -5 --------- Run | Yrd Mat Mat Mat Fac Fac DSF Fac Ext Distress Signals 6 | . 1 3 1 . . . . 1 Communications Jammed . | . . . . . . . . . Distress Signals . | . . . . . . . . . Times Spotted 156 | . 12 35 17 17 . 9 28 38 Peak Tracking Total 19 | . 4 6 4 4 . 4 8 19 Tactical Retreats 3 | . . 1 . . . 1 . 1 Traps | -11 -10 -9 -8 -7 -6 -6 -5 -5 ------- Run | Yrd Mat Mat Mat Fac Fac DSF Fac Ext Traps Triggered 5 | . . 1 2 . . 2 . . Indirectly . | . . . . . . . . . Trap Hack Attempts . | . . . . . . . . . Triggered . | . . . . . . . . . Disarmed . | . . . . . . . . . Reprogrammed . | . . . . . . . . . Reused . | . . . . . . . . . Traps Extracted . | . . . . . . . . . Installed . | . . . . . . . . . Triggered . | . . . . . . . . . Machines | -11 -10 -9 -8 -7 -6 -6 -5 -5 ---------- Run | Yrd Mat Mat Mat Fac Fac DSF Fac Ext Machines Disabled 28 | . . 6 . . . 1 20 1 Max in Single Turn 5 | . . 3 . . . 1 5 1 Energy Cycler 1 | . . . . . . . . 1 Machines Repaired . | . . . . . . . . . Machines Dismantled . | . . . . . . . . . Machines Sabotaged . | . . . . . . . . . Overloaded Fab Kills . | . . . . . . . . . Hacking | -11 -10 -9 -8 -7 -6 -6 -5 -5 --------- Run | Yrd Mat Mat Mat Fac Fac DSF Fac Ext Machines Accessed 28 | . 2 6 1 3 1 . 11 4 Terminals 26 | . 2 6 1 2 1 . 10 4 Fabricators 1 | . . . . 1 . . . . Repair Stations . | . . . . . . . . . Recycling Units 1 | . . . . . . . 1 . Scanalyzers . | . . . . . . . . . Garrison Access . | . . . . . . . . . Total Hacks 109 | . 9 18 4 10 1 . 50 17 Successful 45 | . 4 7 1 3 1 . 22 7 Failed 63 | . 5 11 3 7 . . 27 10 Catastrophic 12 | . 2 2 . 2 . . 4 2 Database Lockouts 1 | . . . . . . . 1 . Manual 82 | . 5 9 4 4 . . 50 10 Terminals 105 | . 9 18 4 8 1 . 48 17 Fabricators 2 | . . . . 2 . . . . Repair Stations . | . . . . . . . . . Recycling Units 2 | . . . . . . . 2 . Scanalyzers . | . . . . . . . . . Garrison Access . | . . . . . . . . . Terminal Hacks 43 | . 4 7 1 3 1 . 20 7 Record 15 | . . . . 1 . . 10 4 Robot Analysis 3 | . . 1 . . . . 1 1 Prototype ID Bank 3 | . . 3 . . . . . . Open Door 2 | . . . . . . . . 2 Open DSF 2 | . . . . 1 1 . . . Branch Access Points 2 | . 1 . . . . . 1 . Emergency Access Points 3 | . 2 . . . . . 1 . Alert Level 3 | . . 1 . 1 . . 1 . Unreport Threat 3 | . . . . . . . 3 . Locate Traps 2 | . 1 . . . . . 1 . Dispatch Records 1 | . . 1 . . . . . . Patrol Status 1 | . . . . . . . 1 . Transport Status 1 | . . 1 . . . . . . Zone Layout 2 | . . . 1 . . . 1 . Fabricator Hacks . | . . . . . . . . . Repair Station Hacks . | . . . . . . . . . Recycling Unit Hacks 2 | . . . . . . . 2 . Process 1 | . . . . . . . 1 . Report Inventory 1 | . . . . . . . 1 . Scanalyzer . | . . . . . . . . . Garrison Access Hacks . | . . . . . . . . . Unauthorized Hacks . | . . . . . . . . . Terminals . | . . . . . . . . . Fabricators . | . . . . . . . . . Repair Stations . | . . . . . . . . . Recycling Units . | . . . . . . . . . Scanalyzers . | . . . . . . . . . Garrison Access . | . . . . . . . . . Data Cores Recovered 1 | . . . . . . . 1 . Used . | . . . . . . . . . Hacking Detections 25 | . 2 6 1 3 . . 10 3 Full Trace Events 14 | . 1 2 . 2 . . 7 2 Feedback Events . | . . . . . . . . . Feedback Blocked . | . . . . . . . . . Robot Schematics Acquired . | . . . . . . . . . Robots Built . | . . . . . . . . . Authchips . | . . . . . . . . . Time . | . . . . . . . . . Total Robot Build Rating . | . . . . . . . . . Part Schematics Acquired . | . . . . . . . . . Parts Built . | . . . . . . . . . Authchips . | . . . . . . . . . Time . | . . . . . . . . . Total Part Build Rating . | . . . . . . . . . Parts Repaired . | . . . . . . . . . Time . | . . . . . . . . . Parts Recycled . | . . . . . . . . . Recycled Matter 108 | . . . . . . . 108 . Retrieved Matter . | . . . . . . . . . Retrieved Components . | . . . . . . . . . Parts Scanalyzed . | . . . . . . . . . Part Schematics Acquired . | . . . . . . . . . Parts Damaged . | . . . . . . . . . Bothacking | -11 -10 -9 -8 -7 -6 -6 -5 -5 ------------ Run | Yrd Mat Mat Mat Fac Fac DSF Fac Ext Used RIF Installer . | . . . . . . . . . Robots Hacked . | . . . . . . . . . Non-combat . | . . . . . . . . . Combat . | . . . . . . . . . Robot Hacks Applied . | . . . . . . . . . Relay Couplers Released 3 | . . . . . . . 3 . Programmers 3 | . . . . . . . 3 . Fabnet Peak Effective % . | . . . . . . . . . Robots Rewired . | . . . . . . . . . Allies Hacked . | . . . . . . . . . Hacks Repelled . | . . . . . . . . . Allies | -11 -10 -9 -8 -7 -6 -6 -5 -5 -------- Run | Yrd Mat Mat Mat Fac Fac DSF Fac Ext Total Allies 3 | . . . . . . . . 3 Largest Group 3 | . . . . . . . . 3 Highest-Rated Group 89 | . . . . . . . . 89 Highest-Rated Ally 39 | . . . . . . . . 39 Total Orders . | . . . . . . . . . Ally Attacks 7 | . . . . . . . . 7 Total Damage 150 | . . . . . . . . 150 Kills . | . . . . . . . . . Allies Corrupted . | . . . . . . . . . Allies Melted . | . . . . . . . . . Intel | -11 -10 -9 -8 -7 -6 -6 -5 -5 ------- Run | Yrd Mat Mat Mat Fac Fac DSF Fac Ext Robot Analysis Total 3 | . . 1 . . . . 1 1 Derelict Logs Recovered . | . . . . . . . . . Drone Launches . | . . . . . . . . . Drone Recoveries . | . . . . . . . . . Exploration | -11 -10 -9 -8 -7 -6 -6 -5 -5 ------------- Run | Yrd Mat Mat Mat Fac Fac DSF Fac Ext Turns Passed 4544 | 78 477 878 519 441 6 321 1375 449 Spaces Moved 2183 | 42 253 434 238 197 3 131 694 191 Core 23 | 4 . 1 . . . . . 18 Treads 1995 | 38 253 319 238 197 3 80 694 173 Legs 114 | . . 114 . . . . . . Wheels 51 | . . . . . . 51 . . Hover . | . . . . . . . . . Flight . | . . . . . . . . . Fastest Speed 50 | 50 160 120 160 160 160 100 170 50 Average Speed 159 | 149 160 149 160 160 160 142 170 159 Slowest Speed 300 | 160 160 300 160 160 160 170 170 250 Overloaded Moves . | . . . . . . . . . Propulsion Burnouts . | . . . . . . . . . Robots Hopped . | . . . . . . . . . Cave-ins Triggered . | . . . . . . . . . Exploration Rate (%) 33 | 4 55 46 21 7 . 90 19 29 Regions Visited 8 Branch Regions 1 Pre-discovered Areas . | . . . . . . . . . Known Exits Taken 2 | . . . . . 1 . 1 . Unknown Exits Taken 5 | 1 1 1 1 1 . . . . Scrap Searched . | . . . . . . . . . Spaces Dug . | . . . . . . . . . Terrain Destroyed 427 | . . 128 9 . . . 206 84 Melee . | . . . . . . . . . Projectile 84 | . . . . . . . 51 33 AOE 343 | . . 128 9 . . . 155 51 Terrain Rammed . | . . . . . . . . . Walls Destroyed . | . . . . . . . . . Machines Disabled . | . . . . . . . . . Actions | -11 -10 -9 -8 -7 -6 -6 -5 -5 --------- Run | Yrd Mat Mat Mat Fac Fac DSF Fac Ext Total 2734 | 57 292 546 311 261 5 221 793 248 Wait 57 | . 10 . 7 16 . 8 15 1 Move 2175 | 41 252 433 237 196 2 130 693 191 Hop . | . . . . . . . . . Pick Up 110 | 10 7 21 16 8 . 24 24 . Fast Attach . | . . . . . . . . . Attach 57 | 6 1 14 6 4 2 13 3 8 Detach . | . . . . . . . . . Swap 52 | . 1 9 8 9 . 9 13 3 Drop 52 | . 2 10 10 5 1 12 10 2 Fire 226 | . 19 59 27 23 . 25 35 38 Melee . | . . . . . . . . . Ram 4 | . . . . . . . . 4 Kick . | . . . . . . . . . Crush . | . . . . . . . . . Escape Stasis . | . . . . . . . . . Rewire 1 | . . . . . . . . 1 Trap . | . . . . . . . . . Miscellaneous . | . . . . . . . . . Route ------- -11/Scrapyard -10/Materials (discovered 2 exits: *Mat / *Min) -9/Materials (discovered 2 exits: *Mat / [*Min]) -8/Materials -7/Factory -6/Factory -6/DSF -5/Factory (discovered 4 exits: *Upp x2 / *Ext x2) -5/Extension History --------- Turn | Location | Event 9 | -11/Scrapyard | Discovered new exit (range 15) 79 | -11/Scrapyard | Entered Materials 219 | -10/Materials | Discovered new exit (range 15) 331 | -10/Materials | Build established: Mutant 476 | -10/Materials | Identified exit to Mines 544 | -10/Materials | Discovered new exit (range 9) 556 | -10/Materials | Entered another Materials area 556 | -9/Materials | Evolved 2 slots: Propulsion x1, Utility x1 826 | -9/Materials | Lost 4 parts (1n2u1w) 1043 | -9/Materials | Discovered new exit (range 16) 1326 | -9/Materials | Discovered new exit (range 13) 1434 | -9/Materials | Entered another Materials area 1434 | -8/Materials | Evolved 2 slots: Weapon x2 1931 | -8/Materials | Discovered new exit (range 15) 1953 | -8/Materials | Entered Factory 1953 | -7/Factory | Evolved 2 slots: Utility x1, Weapon x1 2103 | -7/Factory | Build established: Skirmisher 2179 | -7/Factory | Garrison activated, responded to threat 2272 | -7/Factory | Discovered new exit (range 14) 2394 | -7/Factory | Entered another Factory area 2394 | -6/Factory | Evolved 2 slots: Propulsion x1, Utility x1 2400 | -6/Factory | Identified exit to DSF 2400 | -6/Factory | Entered DSF 2436 | -6/DSF | Additional patrols routed to DSF 2599 | -6/DSF | Lost 6 parts (1p5w) 2606 | -6/DSF | Sterilization system engaged 2626 | -6/DSF | Ambient heat levels rising (+10) 2641 | -6/DSF | Ambient heat levels rising (+10) 2656 | -6/DSF | Ambient heat levels rising (+10) 2671 | -6/DSF | Ambient heat levels rising (+10) 2678 | -6/DSF | Discovered new exit (range 14) 2686 | -6/DSF | Ambient heat levels rising (+10) 2701 | -6/DSF | Ambient heat levels rising (+10) 2716 | -6/DSF | Ambient heat levels rising (+10) 2721 | -6/DSF | Entered Factory 2721 | -5/Factory | Evolved 2 slots: Power x1, Weapon x1 3175 | -5/Factory | Build established: Hacker-Executioner 3346 | -5/Factory | Discovered new exit (range 11) 3383 | -5/Factory | Central database locked down 3383 | -5/Factory | Identified exit to Upper Caves 3383 | -5/Factory | Identified exit to Extension 3644 | -5/Factory | Destroyed 11 combat bots 4096 | -5/Factory | Entered Extension 4161 | -5/Extension | Rescued a captive Derelict 4162 | -5/Extension | Rescued a captive Derelict 4315 | -5/Extension | Rescued a captive Derelict 4358 | -5/Extension | Energy Cycler disabled 4359 | -5/Extension | Rescued a captive Derelict 4361 | -5/Extension | Rescued a captive Derelict 4362 | -5/Extension | Rescued a captive Derelict 4387 | -5/Extension | Lost 3 allies 4396 | -5/Extension | First assault squad dispatched 4523 | -5/Extension | Core integrity fell below 50% 4535 | -5/Extension | Core integrity fell below 20% 4545 | -5/Extension | Destroyed by S-27 Virus with Autogun Last Messages --------------- 04524_ Neutrino Core destroyed. 04525_ Lgt. Neutrino Core destroyed. 04525_ Imp. Hacking Suite destroyed. 04525_ System corrupted by crushing effect (+4). 04527_ Imp. Light Armor Plating destroyed. 04528_ System corrupted: Energy discharge (-23). 04528_ Disruptor Cannon destroyed. 04530_ Imp. Power Shielding destroyed. 04530_ Focal Shield destroyed. 04530_ System corrupted by crushing effect (+1). 04531_ Angular Momentum Engine destroyed. 04531_ Dropped Lrg. Storage Unit. 04532_ Dropped Lgt. Fission Core. 04534_ Slammed into E-15 Imp. 04534_ Adv. System Shield blown off. 04534_ E-15 Imp destroyed. 04535_ Acquired 16 matter. 04536_ Slammed into S-27 Virus. 04539_ U-05 Engineer lays Concrete. 04545_ M-28 Smith repairs S-27 Virus. Map ----- +----------------------------------------------------+ | | | | | | | | | | | | | | | | | ?????????????????????????????????????????????????? | | ?????????????????????????????????????????????##??? | | ????????????????????????????????????????????#"#### | | #########???????????????????################" | | * #??????####?????????# l /= =! *=!/ !=* | | ####?### ?????????# ss##########""[*[= | | # ??? ######???# ms;#????????##%[%[% | | !/ ! # #????# # #???# s;###########=%%/% | | ######### #?????# ##### # ## * % | | #?????# ##;;; #### = ###%"%[ | | ######### #?????# R %u+ == #??% %% | | ????????# #?????# u g ### [ +??% | | ????????# #?????#"" # #?? | | ????????# #?????#"" ### = #?? | | ????????# #?????#"T #??#######?? % | | ????????# #?????#"" #??????????? | | ????????# #?????#"" #???????????? | | ######### ####### @ % ####????????? | | % !%=% ?????? | | ###################;#### ##############??????#?? | | ????????????????############ # #???????????????? | | ????????????????????????## #???????????????? | | ?????????????????????????#########???????????????? | | ?????????????????????????????????????????????????? | | ?????????????????????????????????????????????????? | | ?????????????????????????????????????????????????? | | ?????????????????????????????????????????????????? | | ?????????????????????????????????????????????????? | | ?????????????????????????????????????????????????? | | ?????????????????????????????????????????????????? | | ?????????????????????????????????????????????????? | | ?????????????????????????????????????????????????? | | ?????????????????????????????????????????????????? | | ?????????????????????????????????????????????????? | | ?????????????????????????????????????????????????? | | ?????????????????????????????????????????????????? | | ?????????????????????????????????????????????????? | | ?????????????????????????????????????????????????? | | ?????????????????????????????????????????????????? | | ?????????????????????????????????????????????????? | | ?????????????????????????????????????????????????? | | ?????????????????????????????????????????????????? | +----------------------------------------------------+ Best States ------------- Heat Dissipation 98 Coolant Potential 50 Energy Generation 33 Energy Capacity 385 Matter Stores 300 Matter Capacity 300 Sight Range 16 Robot Scan Range 15 Terrain Scan Range 16 Terrain Scan Density 210 Armor Coverage 150 Power Shielding 66 Propulsion Shielding 33 Utility Shielding 66 Evasion (%) 55 Targeting Accuracy 6 Core Analysis 9 Recoil Reduction 4 Matter Filtering 30 Kinecelleration 30 Offensive Hacking 12 Defensive Hacking 14 Item Schematics ----------------- None Robot Schematics ------------------ None Fabricated ------------ Nothing Alien Tech Used ----------------- None Achievements -------------- Everything Is Under Control More Dakka Please Omniscient Cartographer Remodeling Significant Disruption root@ Challenges ------------ None Game ------ Seed PhasingDamperInsulator Manual? 0 Play Time 02:24:27 Cumulative 15.4 hours Start 2024.06.10 @ 23:31:04 End 2024.06.14 @ 22:15:27 Sessions 9 Manual Loads 0 Difficulty Rogue Special Mode None Game No. 9 Rogue 9 Adventurer 0 Explorer 0 Win Type - Total 0 Types 0/0/0/0/0/0/0/0/0 Lore% 19 Gallery% 20 Achievement% 17 Wizard Run 0 Options --------- Layout 0 ASCII 0 Keyboard 0 Movement Mouse Keybinds 0 Fullscreen 2 Font 36/Terminus++ Map View 38x25 Zoom Use 98% Tactical HUD 1 Map Filters NONE Filters NONE Steam 1 RUN: 2e6e3b2b-af2f-4c54-bf57-0603ae3b5672